Cogmind - Beta 14 @@@ ROGUE MODE // 2025.03.06 @ 12:52:56 Player: mix Result: Destroyed by D-53 Grenadier with Mini Grenade Launcher Performance ------------- Evolutions (1) 500 Regions Visited (4) 800 Robots Destroyed (76) 380 Value Destroyed (1563) 1563 Prototype IDs (2) 40 Alien Tech Used (0) 0 Bonus (121) 121 TOTAL SCORE: 3404 Bonus ------- High Alert Combat Kills 121 Cogmind --------- Core Integrity 0/400 Matter 290/300 Energy 84/100 System Corruption 6% Temperature Cool (0) Movement Treading (160) Location -9/Mines Parts ------- > --- POWER (1) -------- (None) > --- PROPULSION (2) --- Light Treads Light Treads > --- UTILITY (4) ------ Heat Sink Large Storage Unit Signal Interpreter > --- WEAPON (2) ------- Improved EM Shotgun Mini Grenade Launcher > --- INVENTORY (15) --- Ion Engine Light Treads Light Treads Light Treads Improved EM Shotgun Particle Cannon Peak State ------------ > --- POWER ------------ Light Nuclear Core > --- PROPULSION ------- Light Treads Light Treads > --- UTILITY ---------- Heat Sink Large Storage Unit Signal Interpreter Propulsion Shielding > --- WEAPON ----------- Improved EM Shotgun Slug Cannon > --- INVENTORY -------- Ion Engine Light Treads Light Treads Light Treads Improved EM Shotgun Particle Cannon Mini Grenade Launcher [Rating: 17] Favorites ----------- Power Ion Engine Engine Ion Engine Power Core Light Nuclear Core Propulsion Light Treads Treads Light Treads Utility Large Storage Unit Device Heat Sink Storage Large Storage Unit Processor Signal Interpreter Protection Propulsion Shielding Weapon Beam Rifle Energy Gun Beam Rifle Energy Cannon Light EM Pulse Cannon Ballistic Gun Light Assault Rifle Ballistic Cannon Slug Cannon Launcher Mini Grenade Launcher Build | -11 -10 -10 -9 -9 ------- Run | Yrd Mat Min Mat Min Slots Evolved 2 | . . . 2 . Power . | . . . . . Propulsion . | . . . . . Utility 2 | . . . 2 . Weapon . | . . . . . Parts Attached 43 | 6 8 1 25 3 Power 6 | 1 2 . 3 . Engine 5 | 1 2 . 2 . Core 1 | . . . 1 . Reactor . | . . . . . Propulsion 9 | 2 1 1 5 . Treads 9 | 2 1 1 5 . Leg . | . . . . . Wheel . | . . . . . Hover . | . . . . . Flight . | . . . . . Utility 8 | 1 2 . 5 . Device 2 | . 1 . 1 . Storage 2 | 1 1 . . . Processor 1 | . . . 1 . Hackware . | . . . . . Protection 3 | . . . 3 . Artifact . | . . . . . Weapon 20 | 2 3 . 12 3 Energy Gun 10 | 1 3 . 6 . Energy Cannon 4 | . . . 4 . Ballistic Gun 1 | 1 . . . . Ballistic Cannon 2 | . . . 1 1 Launcher 3 | . . . 1 2 Special Weapon . | . . . . . Impact Weapon . | . . . . . Slashing Weapon . | . . . . . Piercing Weapon . | . . . . . Special Melee Weapon . | . . . . . Unidentified Prototypes 2 | . . . 2 . Corrupted Parts 1 | . . . 1 . System Corruption 6 | . . . 6 . Parts Lost 20 | . 2 1 14 3 Power 3 | . 1 . 1 1 Propulsion 6 | . 1 1 4 . Utility 3 | . . . 2 1 Weapon 8 | . . . 7 1 Highest Loss Streak 7 | . 2 1 7 3 To Critical Strikes . | . . . . . Average Slot Usage (%) 93 | . 96 99 87 99 Engine 10 | . 13 14 9 . Core 1 | . . . 1 11 Treads 24 | . 27 27 21 22 Device 7 | . 1 14 11 11 Storage 15 | . 24 14 11 11 Processor 2 | . . . 1 11 Protection 5 | . . . 9 10 Energy Gun 15 | . 22 28 10 11 Energy Cannon 2 | . . . 4 . Ballistic Gun 2 | . 5 . . . Ballistic Cannon 4 | . . . 6 10 Peak Build Rating 17 | 6 10 10 17 17 Average Rating 10 | 4 7 9 12 16 On Entrance 8 | . 6 10 10 17 Naked Turns . | . . . . . Heaviest Build 38 | 10 36 32 38 37 Greatest Support 40 | 40 40 40 40 40 Greatest Overweight (x) 1 | . . 1 1 . Average Overweight (x) . | . . . . . Largest Inventory Capacity 15 | 8 15 15 15 15 Average Capacity 14 | 7 13 15 15 15 Most Carried 13 | 4 9 9 13 7 Average Carried 6 | . 3 8 7 6 Final Capacity 15 | 8 15 15 15 15 Final Carried 9 | . 9 9 7 6 Class Distribution -------------------- 69% | Mutant 30% | Scavenger-Mutant Dominant Class ---------------- Mutant | -10/Materials Mutant | -10/Mines Mutant | -9/Materials Scavenger-Mutant | -9/Mines Resources | -11 -10 -10 -9 -9 ----------- Run | Yrd Mat Min Mat Min Matter Collected 1106 | 95 294 12 585 120 Remotely . | . . . . . Salvage Created 1908 | . 554 46 1208 100 Parts 143 | . 39 8 92 4 Haulers Intercepted 6 | . 2 . 4 . Recyclers Shooed . | . . . . . Parts Field Recycled . | . . . . . Retrieved Matter . | . . . . . Parts Self-Destructed . | . . . . . Prevented . | . . . . . Kills | -11 -10 -10 -9 -9 ------- Run | Yrd Mat Min Mat Min Combat Hostiles Destroyed 60 | . 16 3 35 6 Guns 34 | . 16 3 14 1 Cannons 14 | . . . 13 1 AOE 11 | . . . 7 4 Classes Destroyed 10 | . 5 . 5 . Worker 3 | . . . 3 . Hauler 6 | . 2 . 4 . Recycler 1 | . . . 1 . Mechanic 1 | . . . 1 . Operator 1 | . 1 . . . Watcher 4 | . 1 . 3 . Swarmer 29 | . 9 3 13 4 Grunt 24 | . 7 . 15 2 Duelist 1 | . . . 1 . Sentry 6 | . . . 6 . Best Kill Streak 8 | . 6 3 8 4 Combat Bots Only 7 | . 6 3 7 4 Max Kills in Single Turn 4 | . 1 1 3 4 Gunslinging . | . . . . . Exploded 4 | . . . 2 4 Melee . | . . . . . Uniques/NPCs Destroyed . | . . . . . Combat | -11 -10 -10 -9 -9 -------- Run | Yrd Mat Min Mat Min Hostile Shots Fired 360 | . 88 14 241 17 Missed 103 | . 21 2 75 5 Damage Taken 2936 | . 650 96 1865 325 Core 587 | . 165 22 319 81 Absorbed by Shields . | . . . . . Redirected to Shielding 50 | . . . 25 25 Core Remaining (%) 62 | 100 . 25 . . Volleys Fired 165 | . 55 4 99 7 Largest 2 | . 2 2 2 2 Hottest 112 | . 112 112 112 93 Shots Fired 317 | . 108 8 188 13 Gun 206 | . 108 8 83 7 Cannon 106 | . . . 101 5 Launcher 5 | . . . 4 1 Special . | . . . . . Kinetic 84 | . 19 . 60 5 Thermal 170 | . 89 8 73 . Explosive 5 | . . . 4 1 Electromagnetic 58 | . . . 51 7 Robot Hit Streak 13 | . 13 4 10 6 Robot Miss Streak 6 | . 6 3 3 4 Penetration Max . | . . . . . Secondary Targets 3 | . 1 . 2 . Max Gunslinging Chain 1 | . 1 . 1 . Shots Hit Robots 194 | . 59 4 120 11 Core Hits 100 | . 28 3 59 10 Critical Kills 2 | . . . 2 . Critical Parts Destroyed 4 | . . . 4 . Critical Strikes 15 | . 3 . 12 . Burn 9 | . 3 . 6 . Destroy 6 | . . . 6 . Melee Attacks . | . . . . . Impact . | . . . . . Slashing . | . . . . . Piercing . | . . . . . Sneak Attacks . | . . . . . Combat Hostiles . | . . . . . Follow-up Attacks . | . . . . . Damage Inflicted 4612 | . 782 58 3349 423 Guns 1764 | . 778 58 838 90 Cannons 1897 | . . . 1785 112 Explosions 947 | . . . 726 221 Melee . | . . . . . Ramming 4 | . 4 . . . Kinetic 1299 | . 59 . 1128 112 Thermal 1614 | . 719 58 837 . Explosive 851 | . . . 630 221 Electromagnetic 844 | . . . 754 90 Impact . | . . . . . Slashing . | . . . . . Piercing . | . . . . . Highest Corruption 6 | . 2 2 6 6 Average Corruption 3 | . 2 2 6 6 Corruption Purged . | . . . . . Corruption Blocked . | . . . . . Effects 34 | . 15 2 7 10 Message Errors 10 | . 3 . 2 5 Matter Fused 11 | . 6 1 1 3 Heat Flow Errors 2 | . 1 . . 1 Energy Discharges 2 | . 1 . 1 . Data Loss (minor) 4 | . 2 . 1 1 Data Loss (major) 3 | . 2 . 1 . Misfires 1 | . . . 1 . Alerts 1 | . . 1 . . Overload Shots . | . . . . . Overflow Damage 127 | . . . 127 . Projectiles 74 | . . . 74 . Explosions 53 | . . . 53 . Melee . | . . . . . Knockbacks 12 | . . . 10 2 Impact . | . . . . . Kinetic 11 | . . . 9 2 Secondary 1 | . . . 1 . Self-Inflicted Damage 37 | . . . 37 . Shots 1 | . . . 1 . Rammed 1 | . 1 . . . Targets Rammed 1 | . 1 . . . Kicked . | . . . . . Crushed . | . . . . . Highest Temperature 312 | . 302 42 312 173 Average Temperature 67 | . 98 22 45 38 Received Heat Transfer 780 | . 210 . 555 15 Effects 2 | . . . 2 . Interference 2 | . . . 2 . Siege Activations . | . . . . . Robots Corrupted . | . . . . . Combat Hostiles . | . . . . . Parts Fried 2 | . . . 2 . Impact Corruptions . | . . . . . Robots Melted 1 | . . . 1 . Combat Hostiles 1 | . . . 1 . Parts Melted 7 | . 3 . 4 . Heat Transferred 4546 | . 2017 148 2381 . Parts Sabotaged . | . . . . . Parts Stolen . | . . . . . Parts Stripped . | . . . . . Power Chain Reactions 2 | . . . 2 . Alert | -11 -10 -10 -9 -9 ------- Run | Yrd Mat Min Mat Min Peak Influence 793 | . 170 138 793 440 Initial 271 | . . 63 53 271 Average 253 | . 68 135 392 394 Maximum Alert Level 3 | . . . 3 2 Low Security (%) 57 | 100 100 100 30 . Level 1 14 | . . . 15 66 Level 2 26 | . . . 51 33 Level 3 1 | . . . 3 . Level 4 . | . . . . . Level 5 . | . . . . . High Security . | . . . . . Max Security . | . . . . . Squads Dispatched 8 | . 3 . 5 . Investigation 2 | . 1 . 1 . Extermination . | . . . . . Reinforcement 6 | . 2 . 4 . Assault . | . . . . . Garrison . | . . . . . Intercept . | . . . . . Searches Triggered . | . . . . . Construction Impeded . | . . . . . Haulers Reinforced . | . . . . . Active Scanning Responses . | . . . . . Cargo Convoy Interrupts . | . . . . . Stealth | -11 -10 -10 -9 -9 --------- Run | Yrd Mat Min Mat Min Distress Signals 3 | . 1 . 2 . Communications Jammed . | . . . . . Distress Signals . | . . . . . Times Spotted 90 | . 25 3 54 8 Peak Tracking Total 11 | . 6 3 11 4 Tactical Retreats 5 | . . . 5 . Traps | -11 -10 -10 -9 -9 ------- Run | Yrd Mat Min Mat Min Traps Triggered 3 | . 2 . 1 . Indirectly . | . . . . . Trap Hack Attempts . | . . . . . Triggered . | . . . . . Disarmed . | . . . . . Reprogrammed . | . . . . . Reused . | . . . . . Traps Extracted . | . . . . . Installed . | . . . . . Triggered . | . . . . . Machines | -11 -10 -10 -9 -9 ---------- Run | Yrd Mat Min Mat Min Machines Disabled . | . . . . . Max in Single Turn . | . . . . . Machines Repaired . | . . . . . Machines Dismantled . | . . . . . Machines Sabotaged . | . . . . . Overloaded Fab Kills . | . . . . . Hacking | -11 -10 -10 -9 -9 --------- Run | Yrd Mat Min Mat Min Machines Accessed 4 | . 1 . 3 . Terminals 2 | . . . 2 . Fabricators . | . . . . . Repair Stations . | . . . . . Recycling Units 2 | . 1 . 1 . Scanalyzers . | . . . . . Garrison Access . | . . . . . Total Hacks 8 | . 2 . 6 . Successful 3 | . 2 . 1 . Failed 5 | . . . 5 . Catastrophic 2 | . . . 2 . Database Lockouts . | . . . . . Manual 5 | . . . 5 . Terminals 5 | . . . 5 . Fabricators . | . . . . . Repair Stations . | . . . . . Recycling Units 3 | . 2 . 1 . Scanalyzers . | . . . . . Garrison Access . | . . . . . Terminal Hacks . | . . . . . Fabricator Hacks . | . . . . . Repair Station Hacks . | . . . . . Recycling Unit Hacks 3 | . 2 . 1 . Retrieve Components 3 | . 2 . 1 . Scanalyzer . | . . . . . Garrison Access Hacks . | . . . . . Unauthorized Hacks . | . . . . . Terminals . | . . . . . Fabricators . | . . . . . Repair Stations . | . . . . . Recycling Units . | . . . . . Scanalyzers . | . . . . . Garrison Access . | . . . . . Data Cores Recovered . | . . . . . Used . | . . . . . Hacking Detections 3 | . 1 . 2 . Full Trace Events 2 | . . . 2 . Feedback Events . | . . . . . Feedback Blocked . | . . . . . Robot Schematics Acquired . | . . . . . Robots Built . | . . . . . Authchips . | . . . . . Time . | . . . . . Total Robot Build Rating . | . . . . . Part Schematics Acquired . | . . . . . Parts Built . | . . . . . Authchips . | . . . . . Time . | . . . . . Total Part Build Rating . | . . . . . Parts Repaired . | . . . . . Time . | . . . . . Parts Recycled . | . . . . . Recycled Matter . | . . . . . Retrieved Matter . | . . . . . Retrieved Components 9 | . . . 9 . Parts Scanalyzed . | . . . . . Part Schematics Acquired . | . . . . . Parts Damaged . | . . . . . Bothacking | -11 -10 -10 -9 -9 ------------ Run | Yrd Mat Min Mat Min Used RIF Installer . | . . . . . Robots Hacked . | . . . . . Non-combat . | . . . . . Combat . | . . . . . Robot Hacks Applied . | . . . . . Relay Couplers Released . | . . . . . Fabnet Peak Effective % . | . . . . . Robots Rewired . | . . . . . Allies Hacked . | . . . . . Hacks Repelled . | . . . . . Allies | -11 -10 -10 -9 -9 -------- Run | Yrd Mat Min Mat Min Total Allies . | . . . . . Largest Group . | . . . . . Highest-Rated Group . | . . . . . Highest-Rated Ally . | . . . . . Total Orders . | . . . . . Ally Attacks . | . . . . . Total Damage . | . . . . . Kills . | . . . . . Allies Corrupted . | . . . . . Allies Melted . | . . . . . Intel | -11 -10 -10 -9 -9 ------- Run | Yrd Mat Min Mat Min Robot Analysis Total . | . . . . . Derelict Logs Recovered . | . . . . . Drone Launches . | . . . . . Drone Recoveries . | . . . . . Exploration | -11 -10 -10 -9 -9 ------------- Run | Yrd Mat Min Mat Min Turns Passed 3014 | 60 1047 219 1336 352 Spaces Moved 1434 | 34 521 98 596 185 Core 5 | 5 . . . . Treads 1429 | 29 521 98 596 185 Legs . | . . . . . Wheels . | . . . . . Hover . | . . . . . Flight . | . . . . . Fastest Speed 50 | 50 160 160 160 160 Average Speed 159 | 143 160 160 160 160 Slowest Speed 240 | 160 160 240 240 160 Overloaded Moves . | . . . . . Propulsion Burnouts . | . . . . . Robots Hopped . | . . . . . Cave-ins Triggered . | . . . . . Exploration Rate (%) 43 | 4 82 25 61 46 Regions Visited 4 Branch Regions 2 Pre-discovered Areas 1 | . . . . 1 Known Exits Taken 1 | . . . 1 . Unknown Exits Taken 3 | 1 1 1 . . Scrap Searched . | . . . . . Spaces Dug . | . . . . . Terrain Destroyed 70 | . . . 56 14 Melee . | . . . . . Projectile 20 | . . . 19 1 AOE 50 | . . . 37 13 Terrain Rammed . | . . . . . Walls Destroyed . | . . . . . Machines Disabled . | . . . . . Actions | -11 -10 -10 -9 -9 --------- Run | Yrd Mat Min Mat Min Total 1843 | 45 630 152 789 227 Wait 152 | . 24 49 47 32 Move 1430 | 33 520 97 595 185 Hop . | . . . . . Pick Up 42 | 6 17 1 18 . Fast Attach . | . . . . . Attach 31 | 6 4 1 19 1 Detach . | . . . . . Swap 13 | . 4 . 7 2 Drop 9 | . 5 . 4 . Fire 165 | . 55 4 99 7 Melee . | . . . . . Ram . | . . . . . Kick . | . . . . . Crush 1 | . 1 . . . Escape Stasis . | . . . . . Rewire . | . . . . . Trap . | . . . . . Miscellaneous . | . . . . . Route ------- -11/Scrapyard -10/Materials (discovered 4 exits: *Mat x3 / [*Min]) -10/Mines -9/Materials (discovered 3 exits: *Mat x2 / *Min) -9/Mines (discovered 1 exit: *Mat) History --------- Turn | Location | Event 12 | -11/Scrapyard | Discovered new exit (range 16) 61 | -11/Scrapyard | Entered Materials 140 | -10/Materials | Discovered new exit (range 14) 315 | -10/Materials | Build established: Mutant 636 | -10/Materials | Discovered new exit (range 6) 901 | -10/Materials | Discovered new exit (range 5) 966 | -10/Materials | Core integrity fell below 50% 1095 | -10/Materials | Discovered new exit (range 8) 1108 | -10/Materials | Entered Mines 1219 | -10/Mines | YI-UF0 nonchalantly dropped a Grenade Launcher on the ground 1221 | -10/Mines | Found a hidden stash of uninstalled traps 1259 | -10/Mines | A weapon hastily lodged in a ceiling crevice suddenly fell to the ground 1284 | -10/Mines | Discovered new exit (range 7) 1327 | -10/Mines | Entered Materials 1327 | -9/Materials | Evolved 2 slots: Utility x2 1788 | -9/Materials | Build established: Scavenger-Mutant 1863 | -9/Materials | Core integrity fell below 50% 1872 | -9/Materials | Destroyed 7 combat bots 1880 | -9/Materials | Lost 7 parts (1p3n2u1w) 1974 | -9/Materials | Discovered new exit (range 16) 2142 | -9/Materials | Build established: Mutant 2224 | -9/Materials | Discovered new exit (range 16) 2589 | -9/Materials | Identified exit to Materials 2636 | -9/Materials | Discovered new exit (range 14) 2661 | -9/Materials | Identified exit to Mines 2663 | -9/Materials | Entered Mines 2665 | -9/Mines | Core integrity fell below 20% 2698 | -9/Mines | Learned location of Storage (-7) 2729 | -9/Mines | Build established: Scavenger-Mutant 2955 | -9/Mines | Discovered exit to Materials (range 10) 2993 | -9/Mines | Assembled infested the area 2998 | -9/Mines | Assisted by a Guerilla fighting off Assembled 3015 | -9/Mines | Destroyed by D-53 Grenadier with Mini Grenade Launcher Last Messages --------------- G-34 Mercenary knocked back. G-34 Mercenary destroyed. Acquired 44 matter. NFNF0/UPNO3C8RTOQEGFUE/HCK EXIT=FOUND: MATERIALS ALERT: Infestation in the mines, dispatching Demolisher response squad. System corrupted: Matter fused (-9). Y9-QWB(h): "I'll hold them off! Go on ahead or try to find another way!" A derelict emerges from the shadows: "You need to get out of here! I've been tracking a group of Assembled to figure out where they're coming from, and they're closing on this area, come on!" Slug Cannon destroyed. Y9-QWB(h) destroyed. U-05 Engineer builds a Wall. Propulsion Shielding destroyed. Lgt. Nuclear Core destroyed. Map ----- +----------------------------------------------------+ | ??????????????????????????????????????????????? | | ??????????????????????????????????????????????? | | ??????????????????????????????????????????????? | | ??????????????????????????????????????????????? | | ??????????????????????????????????????????????? | | ??????????????????????????????????????????????? | | ???????????????????????????????????????????##?? | | ??????????????????????????????????????????? ## | | ????????????????????????????????????????? ? # | | ???????????????????????????????????????? ? | | ???????????????????????????????????????# """ | | ????????????????????????????????????### ?"" # | | ???????????????????????????????????? ??"" # | | ???????????????????????????????????? ??? # | | ?????????????????????????????##?##?? ????# # | | ?????????????????????######## # ### #????# # | | ??????????????????#### ## ## #????# # | | ?????????????###### # ###??# # | | ??????????? ## ##?# | | ??????????????????# d % #?# # | | ??????????????????# d #?# # | | ??????????????????## # ##?# | | ??????????????????# ### # "#??# | | ??????????????????# #??###### ##### | | ???????????????#### ####????# %% ## | | ???????????????# @ #???## ""%%" # | | ???????????????# #???# """ # | | ???????????????# #???# """ | | ???????????????# #???## | | ???????????????# #????## ## # | | ???????????????# """ """ """ #?????# < ####### | | ???????????????# """ """ """ #?????# #?????? | | ???????????????# """ """ """ #?????## ##?????? | | ???????????????#??#########??#??????####??????? | | ??????????????????????????????????????????????? | | ??????????????????????????????????????????????? | | | | | | | | | | | | | | | | | | | | | | | | | | | | | +----------------------------------------------------+ Best States ------------- Heat Dissipation 48 Energy Generation 14 Energy Capacity 250 Matter Stores 300 Matter Capacity 300 Sight Range 16 Terrain Scan Density 10 Armor Coverage 300 Propulsion Shielding 33 Evasion (%) 40 Recoil Reduction 2 Item Schematics ----------------- None Robot Schematics ------------------ None Fabricated ------------ Nothing Alien Tech Used ----------------- None Achievements -------------- None Challenges ------------ None Game ------ Seed ImprovedTransportFacilitator Manual? 0 Play Time 00:19:59 Cumulative 56.5 hours Start 2025.03.06 @ 12:34:24 End 2025.03.06 @ 12:52:56 Sessions 1 Manual Loads 0 Difficulty Rogue Special Mode None Game No. 79 Rogue 65 Adventurer 14 Explorer 0 Win Type - Total 0 Types 0/0/0/0/0/0/0/0/0 Lore% 20 Gallery% 40 Achievement% 37 Wizard Run 0 Options --------- Layout 1 ASCII 0 Keyboard 0 Movement Mouse Keybinds 0 Fullscreen 1 Font 24/Smallcaps Map View 50x35 Zoom Use 0% Tactical HUD 0 Map Filters NONE Filters NONE Steam 1 RUN: 53849ee9-7f1b-41f6-b279-4a6dd9a32561